Cogmind - Beta 17 @@@ ROGUE MODE // 2026.07.27 @ 22:35:24 Player: shockman27 Result: Destroyed by S-27 Virus with Autogun Performance ------------- Evolutions (6) 3000 Regions Visited (23) 4600 Robots Destroyed (245) 1225 Value Destroyed (7987) 7987 Prototype IDs (75) 1500 Alien Tech Used (0) 0 Bonus (6066) 6066 TOTAL SCORE: 24378 Bonus ------- High Alert Combat Kills 280 Follower Combat Kills 762 Aligned with FarCom 300 Met Data Miner 300 Met Imprinter 300 Was Imprinted 300 Met Warlord at Base 500 MAIN.C Attacked Warlord 500 Warlord Defense Kills 4694 Friendly Fire -1870 Cogmind --------- Core Integrity 0/1150 Matter 300/300 Energy 99/100 System Corruption 6% Temperature Cool (0) Movement Core (50) Location -4/Upper Caves Parts ------- > --- POWER (2) -------- (None) > --- PROPULSION (6) --- (None) > --- UTILITY (9) ------ Spectral Analyzer Core Analyzer > --- WEAPON (2) ------- (None) > --- INVENTORY (5) ---- Cloak of Protection Improved Force Field Skeleton Box Hacking Drone Bay (1/1) Dimensional Node Initializer Peak State ------------ > --- POWER ------------ Light Antimatter Reactor Zionite Light DM Reactor > --- PROPULSION ------- Field Propulsion Array Flying Fortress v7 > --- UTILITY ---------- Advanced Cooling System Medium Storage Unit Spectral Analyzer Experimental Sensor Array Improved Signal Interpreter Core Analyzer Advanced Transmission Jammer Improved Propulsion Shielding Thermal Barrier > --- WEAPON ----------- Cooled Plasma Cannon Matter Neutralizer > --- INVENTORY -------- Energy Well Stasis Canceller Cloak of Protection Centrium Medium Armor Plating Improved Force Field Skeleton Box Hacking Drone Bay Vortex Shotgun Vortex Shotgun Long-range Missile Launcher [Rating: 133] Favorites ----------- Power Zionite Light DM Reactor Engine Deuterium Engine Power Core Enhanced Nuclear Core Reactor Zionite Light DM Reactor Propulsion Light Treads Treads Light Treads Leg Myomer Leg Flight Unit Flying Fortress v7 Utility Improved Signal Interpreter Device Experimental Sensor Array Storage Large Storage Unit Processor Improved Signal Interpreter Hackware Hacking Suite Protection Medium Armor Plating Weapon Cooled Plasma Cannon Energy Gun EM Pulse Gun Energy Cannon Cooled Plasma Cannon Ballistic Gun Light Assault Rifle Ballistic Cannon Advanced Assault Cannon Launcher Vortex Catalyst Activator Special Weapon Mining Laser Impact Weapon Shock Maul Piercing Weapon Vortex Lance Build | -11 -10 -10 -10 -9 -8 -8 -7 -7 -7 -7 -6 -6 -6 -6 -6 -5 -5 -5 -5 -5 -4 -4 -4 ------- Run | Yrd Mat Min Exi Min Mat Sto Fac Low Low Zio Pro Fac Low Low Dat Pro Fac Upp Upp War Pro Fac Upp Slots Evolved 12 | . . . . . 4 . 2 . . . . 2 . . . . 2 . . . . 2 . Power 1 | . . . . . . . . . . . . 1 . . . . . . . . . . . Propulsion 4 | . . . . . 1 . 1 . . . . . . . . . 1 . . . . 1 . Utility 7 | . . . . . 3 . 1 . . . . 1 . . . . 1 . . . . 1 . Weapon . | . . . . . . . . . . . . . . . . . . . . . . . . Parts Attached 141 | 7 8 2 1 . 40 10 11 2 1 3 1 16 1 2 . . 8 1 1 16 . 9 1 Power 16 | 1 . 1 . . 5 . 1 . . . . 4 . . . . . . . 2 . 2 . Engine 8 | 1 . 1 . . 4 . . . . . . 2 . . . . . . . . . . . Core 3 | . . . . . 1 . 1 . . . . . . . . . . . . . . 1 . Reactor 5 | . . . . . . . . . . . . 2 . . . . . . . 2 . 1 . Propulsion 27 | 2 . . . . 14 4 1 . . . . . . . . . . 1 1 1 . 3 . Treads 19 | 2 . . . . 13 4 . . . . . . . . . . . . . . . . . Leg 2 | . . . . . . . . . . . . . . . . . . . . . . 2 . Wheel . | . . . . . . . . . . . . . . . . . . . . . . . . Hover . | . . . . . . . . . . . . . . . . . . . . . . . . Flight 6 | . . . . . 1 . 1 . . . . . . . . . . 1 1 1 . 1 . Utility 57 | 2 2 . 1 . 14 . 7 1 1 2 1 8 1 2 . . 5 . . 7 . 2 1 Device 24 | 1 . . 1 . 2 . 3 1 1 1 . 3 1 . . . 5 . . 4 . 1 . Storage 5 | 1 2 . . . 1 . . . . . . 1 . . . . . . . . . . . Processor 11 | . . . . . 3 . 2 . . . 1 1 . 2 . . . . . 1 . . 1 Hackware 2 | . . . . . 1 . . . . . . 1 . . . . . . . . . . . Protection 15 | . . . . . 7 . 2 . . 1 . 2 . . . . . . . 2 . 1 . Artifact . | . . . . . . . . . . . . . . . . . . . . . . . . Weapon 41 | 2 6 1 . . 7 6 2 1 . 1 . 4 . . . . 3 . . 6 . 2 . Energy Gun 7 | . 1 . . . 2 . . 1 . . . . . . . . . . . 2 . 1 . Energy Cannon 10 | . . . . . . 2 2 . . . . 3 . . . . 2 . . . . 1 . Ballistic Gun 3 | 2 . . . . . . . . . . . . . . . . . . . 1 . . . Ballistic Cannon 10 | . 2 1 . . 5 1 . . . 1 . . . . . . . . . . . . . Launcher 7 | . 2 . . . . 1 . . . . . 1 . . . . 1 . . 2 . . . Special Weapon 2 | . 1 . . . . 1 . . . . . . . . . . . . . . . . . Impact Weapon 1 | . . . . . . 1 . . . . . . . . . . . . . . . . . Slashing Weapon . | . . . . . . . . . . . . . . . . . . . . . . . . Piercing Weapon 1 | . . . . . . . . . . . . . . . . . . . . 1 . . . Special Melee Weapon . | . . . . . . . . . . . . . . . . . . . . . . . . Unidentified Prototypes 29 | . . . 1 . 4 4 1 . . 1 . 5 1 . . . 1 . . 10 . 1 . Parts Lost 25 | . . . . . 5 . . . . . . . 1 . . . . . . 1 . 11 7 Power 4 | . . . . . 1 . . . . . . . . . . . . . . 1 . 2 . Propulsion 5 | . . . . . 1 . . . . . . . . . . . . . . . . 2 2 Utility 11 | . . . . . 3 . . . . . . . 1 . . . . . . . . 3 4 Weapon 5 | . . . . . . . . . . . . . . . . . . . . . . 4 1 Highest Loss Streak 8 | . . . . . 2 . . . . . . . 1 . . . . . . 1 . 8 4 To Critical Strikes 1 | . . . . . . . . . . . . . . . . . . . . . . 1 . Average Backups 12 | 3 10 14 14 12 14 16 14 15 14 14 14 13 8 9 9 9 8 9 9 9 10 9 5 Power . | . 1 1 . . . 1 1 1 1 1 1 . 1 1 1 1 1 1 1 . . . . Propulsion 1 | 1 2 3 2 2 2 2 . . . . . . . . . . . . . . . . . Utility 6 | . 2 4 5 5 6 7 7 9 8 8 9 8 4 4 5 5 4 5 6 6 6 5 3 Weapon 3 | . 4 5 5 4 3 4 5 4 4 3 3 3 2 2 2 2 2 1 1 1 3 2 . Tool/Special . | . . . . . . . . . . . . . . . . . . . . . . . . Unused Backups 38 | . . 4 4 . 8 3 3 . 1 . 1 8 . . . . 1 . 1 1 . 1 2 Power 6 | . . 1 . . 3 . . . . . 1 1 . . . . . . . . . . . Propulsion 4 | . . 2 2 . . . . . . . . . . . . . . . . . . . . Utility 17 | . . 1 1 . 1 . 1 . 1 . . 7 . . . . 1 . 1 1 . 1 1 Weapon 10 | . . . 1 . 4 3 2 . . . . . . . . . . . . . . . . Tool/Special 1 | . . . . . . . . . . . . . . . . . . . . . . . 1 Average Slot Usage (%) 87 | . 99 100 100 100 98 100 75 76 76 76 76 77 77 79 73 80 75 78 82 79 82 72 25 Engine 5 | . 14 14 14 14 7 9 4 . . . . 5 . . . . . . . . . . . Core 1 | . . . . . 1 . 2 7 7 7 7 5 . . . . . . . . . . . Reactor 3 | . . . . . . . . . . . . . 13 13 13 13 11 11 11 10 11 8 . Treads 13 | . 27 28 28 28 26 27 . . . . . . . . . . . . . . . . . Flight 3 | . . . . . . . 6 7 7 7 7 6 6 6 6 6 5 7 11 11 11 8 . Device 11 | . 14 14 14 14 9 . 6 7 7 7 6 13 19 12 13 13 16 17 17 21 21 19 7 Storage 8 | . 14 14 14 14 9 9 7 7 7 7 7 6 6 6 6 6 5 5 5 5 5 5 1 Processor 15 | . . . . . 11 18 28 30 30 30 30 25 20 25 26 26 23 23 23 18 17 14 10 Hackware 1 | . . . . . 5 9 1 . . . . . . . . . . . . . . . . Protection 2 | . . . . . 8 9 . . . . . . . . . . . . . . 1 4 . Energy Cannon 4 | . . . . . . 4 6 3 5 7 7 4 6 6 . 13 10 11 11 6 10 8 . Ballistic Gun 1 | . 14 . . . . . . . . . . . . . . . . . . . . . . Ballistic Cannon 9 | . 9 28 28 27 17 10 5 7 7 1 5 . . . . . . . . . . . . Impact Weapon 1 | . . . . . . 1 . 3 1 5 1 5 4 5 6 . . . . . . . . Peak Build Rating 133 | 7 8 14 22 17 37 39 74 76 76 76 76 99 103 99 95 95 105 109 110 130 125 133 63 Average Rating 58 | 5 7 12 14 16 31 37 71 74 73 75 74 88 93 94 89 95 103 106 109 122 124 120 35 On Entrance 67 | . 7 8 14 17 17 37 37 74 74 74 71 75 95 93 95 92 95 105 108 110 125 124 63 Avg Prop Armor Cover (%) 14 | . . . . . . . . . . . . . . . . . . . . . . 14 . Naked Turns . | . . . . . . . . . . . . . . . . . . . . . . . . Heaviest Build 68 | 13 32 38 38 38 68 68 49 43 41 45 45 58 49 51 56 49 57 50 50 66 57 62 23 Greatest Support 65 | 40 40 40 40 40 65 65 50 50 50 50 50 50 50 50 50 50 50 58 58 57 57 65 25 Greatest Overweight (x) 3 | . . . . . 1 1 . . . . . 1 . 1 1 . 1 . . 1 . 2 3 Average Overweight (x) . | . . . . . . . . . . . . . . . . . . . . . . . . Largest Inventory Capacity 20 | 8 15 15 15 15 20 20 20 15 15 15 15 15 10 10 10 10 10 10 10 10 10 10 10 Average Capacity 14 | 7 12 15 15 15 17 20 15 15 15 15 15 14 10 10 10 10 10 10 10 10 10 10 6 Most Carried 20 | 6 13 15 15 15 20 20 20 15 15 15 15 15 10 10 10 10 10 10 10 10 10 10 6 Average Carried 13 | 3 10 14 14 15 17 19 14 15 15 15 15 14 9 9 10 10 9 9 9 9 10 9 5 Final Capacity 20 | 8 15 15 15 15 20 20 15 15 15 15 15 10 10 10 10 10 10 10 10 10 10 10 5 Final Carried 20 | 6 13 15 15 15 20 20 15 15 15 15 15 10 10 10 10 10 10 9 10 10 10 6 5 Class Distribution -------------------- 45% | Mutant 22% | Messiah-Scout 13% | Scout 5% | Ninja 4% | Commander-Mutant 3% | Scavenger-Mutant Dominant Class ---------------- Mutant | -10/Materials Mutant | -10/Mines Mutant | -10/Exiles Mutant | -9/Mines Mutant | -8/Materials Commander-Mutant | -8/Storage Scout | -7/Factory Scout | -7/Lower Caves Scout | -7/Lower Caves Scout | -7/Zion Scout | -6/Proximity Caves Ninja | -6/Factory Messiah-Ninja | -6/Lower Caves Messiah-Scout | -6/Lower Caves Messiah-Scout | -6/Data Miner Messiah-Scout | -5/Proximity Caves Messiah-Scout | -5/Factory Messiah-Scout | -5/Upper Caves Messiah-Scout | -5/Upper Caves Messiah-Scout | -5/Warlord Messiah-Scout | -4/Proximity Caves Infiltrator-Scout | -4/Factory Mutant | -4/Upper Caves Resources | -11 -10 -10 -10 -9 -8 -8 -7 -7 -7 -7 -6 -6 -6 -6 -6 -5 -5 -5 -5 -5 -4 -4 -4 ----------- Run | Yrd Mat Min Exi Min Mat Sto Fac Low Low Zio Pro Fac Low Low Dat Pro Fac Upp Upp War Pro Fac Upp Matter Collected 7180 | 262 584 110 . 153 1861 772 743 281 138 150 92 825 45 180 . 140 235 10 10 335 120 54 80 Remotely . | . . . . . . . . . . . . . . . . . . . . . . . . Salvage Created 7708 | 73 549 41 . 60 1305 636 683 3 229 . 262 635 13 237 . 262 341 204 217 1057 608 293 . Parts 346 | 14 36 2 . 14 93 25 38 3 . . 3 21 . 2 . 8 15 6 . 41 8 17 . Haulers Intercepted 16 | . 1 . . . 6 5 1 . . . . 3 . . . . . . . . . . . Recyclers Shooed 4 | . . . . . 2 . 1 . . . . . . . . . . . . . . 1 . Parts Field Recycled . | . . . . . . . . . . . . . . . . . . . . . . . . Retrieved Matter . | . . . . . . . . . . . . . . . . . . . . . . . . Parts Self-Destructed 33 | . . . . . . . . 1 1 . 3 . . 7 . 5 . 10 . . 6 . . Prevented 5 | . . . . . . . . . . . 1 . . . . 3 . 1 . . . . . Parts Restored . | . . . . . . . . . . . . . . . . . . . . . . . . Kills | -11 -10 -10 -10 -9 -8 -8 -7 -7 -7 -7 -6 -6 -6 -6 -6 -5 -5 -5 -5 -5 -4 -4 -4 ------- Run | Yrd Mat Min Exi Min Mat Sto Fac Low Low Zio Pro Fac Low Low Dat Pro Fac Upp Upp War Pro Fac Upp Combat Hostiles Destroyed 168 | . 12 3 . 4 44 10 13 1 . . 5 7 . 4 . 4 8 3 . 41 6 3 . Melee 1 | . . . . . . . . . . . 1 . . . . . . . . . . . . Guns 9 | . 9 . . . . . . . . . . . . . . . . . . . . . . Cannons 63 | . 1 3 . 1 28 9 8 1 . . 1 1 . 1 . . 3 3 . . 2 1 . AOE 86 | . 2 . . 3 16 . 2 . . . . 6 . 2 . 4 5 . . 41 3 2 . Classes Destroyed 24 | 2 6 . . . 5 . . 1 . . 1 . . 1 . 1 . . . 6 . 1 . Worker 15 | 1 2 2 . 1 3 1 . . . . . 2 . . . . . . . . . 3 . Builder 14 | . 1 . . 1 5 . 1 . . . . 3 . . . . . . . . . 3 . Tunneler 8 | 3 1 . . . . . 1 . . . . 2 . . . . . . . . . 1 . Hauler 16 | . 1 . . . 6 5 1 . . . . 3 . . . . . . . . . . . Recycler 9 | . 2 . . . 2 2 1 . . . . 1 . . . . . . . . . 1 . Minesweeper 1 | . . . . . . . . . . . . . . . . 1 . . . . . . . Operator 2 | . . . . . 1 . . . . . . 1 . . . . . . . . . . . Watcher 9 | . 2 . . . 1 . 1 . . . . 1 . . . . 3 . . . . 1 . Swarmer 55 | . 6 3 . 3 17 1 4 . . . . 6 . . . 4 5 . . 5 . 1 . Saboteur 6 | . . . . . . . . . . . . . . . . . . . . 6 . . . Grunt 45 | . 6 . . 1 11 4 6 . . . 2 . . 2 . . . 1 . 8 4 . . Brawler 6 | . . . . . 1 . 1 . . . . . . . . . . 1 . 3 . . . Duelist 5 | . . . . . 2 . . . . . 1 . . 1 . . . . . 1 . . . Protector 2 | . . . . . . . . . . . . . . . . . . . . 2 . . . Sentry 22 | . . . . . 12 5 2 . . . 1 1 . . . . 1 . . . . . . Demolisher 2 | . . . . . . . . . . . . . . . . . . . . 2 . . . Hunter 7 | . . . . . 1 . . . . . . . . . . . . . . 6 . . . Programmer 12 | . . . . . . . . . . . 1 . . . . . 2 1 . 4 2 2 . Behemoth 1 | . . . . . . . . . . . . . . 1 . . . . . . . . . Striker 2 | . . . . . . . . . . . . . . . . . . . . 2 . . . Executioner 2 | . . . . . . . . . . . . . . . . . . . . 2 . . . Thief 1 | . . . . . . . . 1 . . . . . . . . . . . . . . . Thug 1 | . . . . . . . . . . . . . . . . . . . . 1 . . . Fireman 1 | . . . . . . . . . . . . . . . . . . . . . . 1 . Mutant 1 | . . . . . . . . . . . . . . . . . . . . 1 . . . Best Kill Streak 18 | 2 5 2 . 2 10 3 6 1 . . 3 6 . 3 . 4 5 2 . 18 4 5 . Combat Bots Only 18 | . 3 2 . 2 5 3 4 1 . . 3 3 . 3 . 4 5 2 . 18 4 1 . Max Kills in Single Turn 13 | 1 3 1 . 2 2 1 1 1 . . 1 4 . 1 . 2 3 1 . 13 2 3 . Gunslinging . | . . . . . . . . . . . . . . . . . . . . . . . . Exploded 13 | . 2 . . 2 2 . 1 . . . . 2 . 1 . 2 3 . . 13 2 1 . Melee 1 | . . . . . . . . . . . 1 . . . . . . . . . . . . Uniques/NPCs Destroyed . | . . . . . . . . . . . . . . . . . . . . . . . . Combat | -11 -10 -10 -10 -9 -8 -8 -7 -7 -7 -7 -6 -6 -6 -6 -6 -5 -5 -5 -5 -5 -4 -4 -4 -------- Run | Yrd Mat Min Exi Min Mat Sto Fac Low Low Zio Pro Fac Low Low Dat Pro Fac Upp Upp War Pro Fac Upp Hostile Shots Fired 750 | . 52 6 . 6 156 41 72 2 18 . 3 26 . 15 . 8 42 1 . 14 29 124 135 Missed 284 | . 11 2 . 1 45 15 40 1 10 . 1 12 . 6 . 5 15 . . 4 16 47 53 Hits 466 | . 41 4 . 5 111 26 32 1 8 . 2 14 . 9 . 3 27 1 . 10 13 77 82 Melee 7 | . . . . . 3 . . 1 3 . . . . . . . . . . . . . . Projectile 459 | . 41 4 . 5 108 26 32 . 5 . 2 14 . 9 . 3 27 1 . 10 13 77 82 AOE 2 | . . . . . . . . . . . . . . . . . . . . 2 . . . Critical Strikes 21 | . . . . . 3 2 2 . . . . . . . . 1 3 . . . 1 7 2 Actively Blocked 1 | . . . . . . . . . . . . . . . . . . . . . . 1 . Damage Taken 8637 | . 382 51 . 74 2126 398 527 25 98 . . 194 307 216 . 52 563 20 . 423 253 1472 1456 Core 2035 | . 72 18 . . 318 42 91 . 6 . . 78 64 . . . 103 . . 68 20 137 1018 Absorbed by Shields 32 | . . . . . 32 . . . . . . . . . . . . . . . . . . Redirected to Shielding 103 | . . . . . . . . . . . . . . . . . . . . . . 103 . Ignored by Resistances 158 | . . . . . . . . . . . . . . . . . . . . 11 14 133 . Regen/Repaired (Parts) 971 | . 256 . . . 68 . . . . 630 . . . . . . . . . 17 . . . Core Remaining (%) 74 | 100 . . . 64 . 34 . . . . 86 . . . . 83 . . . . 80 . . Volleys Fired 689 | 12 57 11 . 12 146 45 47 23 43 . 7 14 27 58 . 13 55 15 13 16 30 44 1 Largest 2 | 2 2 2 . 2 2 2 2 2 2 . 2 2 1 2 . 2 2 2 2 2 2 2 1 Hottest 140 | 40 100 67 . 67 80 100 120 120 120 . 120 80 35 70 . 70 140 70 70 70 70 70 60 Shots Fired 1044 | 24 112 22 . 19 237 84 79 27 45 . 12 16 27 63 . 24 84 19 26 19 54 50 1 Gun 118 | 24 86 . . . . . . 3 . . . . . . . . . . . . . 4 1 Cannon 855 | . 22 22 . 14 222 84 69 24 45 . 12 9 27 60 . 22 81 19 26 6 48 43 . Launcher 69 | . 2 . . 5 15 . 10 . . . . 7 . 3 . 2 3 . . 13 6 3 . Special 2 | . 2 . . . . . . . . . . . . . . . . . . . . . . Kinetic 535 | 24 93 22 . 14 222 71 35 16 31 . 7 . . . . . . . . . . . . Thermal 419 | . 2 . . . . 13 34 11 14 . 5 9 27 60 . 22 80 19 26 6 48 43 . Explosive 55 | . 2 . . 5 15 . 5 . . . . 7 . 3 . 2 3 . . 4 6 3 . Electromagnetic 21 | . 15 . . . . . 5 . . . . . . . . . 1 . . . . . . Entropic 14 | . . . . . . . . . . . . . . . . . . . . 9 . 4 1 Robot Hit Streak 15 | 5 6 6 . 2 9 15 12 2 3 . 11 4 . 6 . 6 8 4 4 5 8 5 . Robot Miss Streak 9 | 2 5 2 . 2 9 3 6 1 1 . . 1 . 2 . 1 2 1 1 2 2 3 . Penetration Max . | . . . . . . . . . . . . . . . . . . . . . . . . Secondary Targets 1 | . 1 . . . . . . . . . . . . . . . . . . . . . . Max Gunslinging Chain 1 | . 1 . . . . . . . . . . . . . . . . . . . . . . Shots Hit Robots 467 | 16 57 12 . 6 136 58 41 3 6 . 13 20 2 11 . 12 22 6 4 10 23 9 . Core Hits 403 | 6 39 4 . 6 121 20 26 2 1 . 6 17 2 7 . 8 14 5 3 59 16 41 . Critical Kills 6 | . . . . . . . . . 1 . 2 . . 1 . . . . . . 2 . . Critical Parts Destroyed 5 | . . . . . . . . . 2 . . 2 . . . . . . . . . 1 . Critical Strikes 22 | . . 1 . . 5 2 . . 4 . 4 2 . 1 . . . . . . 2 1 . Meltdown 4 | . . . . . . . . . . . 1 . . 1 . . . . . . 2 . . Blast 11 | . . 1 . . 5 2 . . 1 . 2 . . . . . . . . . . . . Smash 6 | . . . . . . . . . 3 . 1 2 . . . . . . . . . . . Detonate 1 | . . . . . . . . . . . . . . . . . . . . . . 1 . Melee Attacks 98 | . . . . . . 5 12 14 12 2 3 48 2 . . . . . . . . . . Impact 98 | . . . . . . 5 12 14 12 2 3 48 2 . . . . . . . . . . Slashing . | . . . . . . . . . . . . . . . . . . . . . . . . Piercing . | . . . . . . . . . . . . . . . . . . . . . . . . Sneak Attacks 8 | . . . . . . . . . . . 1 7 . . . . . . . . . . . Combat Hostiles 1 | . . . . . . . . . . . 1 . . . . . . . . . . . . Follow-up Attacks . | . . . . . . . . . . . . . . . . . . . . . . . . Damage Inflicted 31729 | 144 874 261 . 407 4595 1763 1752 84 459 . 515 2169 193 752 . 775 1283 209 130 11691 1351 2322 . Guns 636 | 144 403 . . . . . . . . . . . . . . . . . . . . 89 . Cannons 10271 | . 188 261 . 179 3407 1748 1090 84 50 . 271 98 . 311 . 369 809 209 130 99 736 232 . Explosions 18638 | . 271 . . 228 1179 . 662 . . . . 769 . 441 . 406 474 . . 11592 615 2001 . Melee 2148 | . . . . . . . . . 409 . 244 1302 193 . . . . . . . . . . Ramming 36 | . 12 . . . 9 15 . . . . . . . . . . . . . . . . . Kinetic 6821 | 144 478 261 . 179 3407 1486 627 57 50 . 132 . . . . . . . . . . . . Thermal 4245 | . 24 . . 125 . 262 463 27 . . 139 98 . 311 . 369 809 209 130 99 736 444 . Explosive 7145 | . 247 . . 103 1179 . 224 . . . . 769 . 441 . 406 474 . . 1056 615 1631 . Electromagnetic 709 | . 113 . . . . . 438 . . . . . . . . . . . . . . 158 . Impact 2148 | . . . . . . . . . 409 . 244 1302 193 . . . . . . . . . . Slashing . | . . . . . . . . . . . . . . . . . . . . . . . . Piercing . | . . . . . . . . . . . . . . . . . . . . . . . . Entropic 10625 | . . . . . . . . . . . . . . . . . . . . 10536 . 89 . Highest Corruption 6 | . . . . . 4 4 4 4 4 4 . . 1 1 1 1 2 . . . 2 6 6 Average Corruption 3 | . . . . . 3 4 3 4 4 4 . . 1 1 1 1 1 . . . 1 4 6 Corruption Purged 2 | . . . . . . . . . . . . . . . . . 2 . . . . . . Corruption Blocked . | . . . . . . . . . . . . . . . . . . . . . . . . Effects 144 | . . . . . 56 34 19 13 9 1 . . . 2 . 3 2 . . . . 2 3 Message Errors 32 | . . . . . 14 11 5 2 . . . . . . . . . . . . . . . Matter Fused 45 | . . . . . 19 11 5 5 2 . . . . . . 1 . . . . . 1 1 Heat Flow Errors 18 | . . . . . 6 2 5 3 . . . . . . . . . . . . . 1 1 Energy Discharges 15 | . . . . . 4 4 . 2 3 . . . . . . 1 1 . . . . . . Parts Fused 1 | . . . . . . . . . 1 . . . . . . . . . . . . . . Data Loss (minor) 14 | . . . . . 6 2 . 1 2 1 . . . 1 . 1 . . . . . . . Data Loss (major) 6 | . . . . . 3 1 2 . . . . . . . . . . . . . . . . Misfires 4 | . . . . . 1 . 1 . 1 . . . . . . . 1 . . . . . . Alerts 4 | . . . . . 1 2 . . . . . . . . . . . . . . . . 1 Weapon Failures 5 | . . . . . 2 1 1 . . . . . . 1 . . . . . . . . . Overload Shots 5 | . . . . . . . . . . . . . . . . . 5 . . . . . . Overflow Damage 2073 | . . . . 4 65 . 77 . 307 . 37 579 . . . 87 76 . 12 584 119 126 . Projectiles 416 | . . . . . 40 . 70 . 23 . . . . . . 76 76 . 12 . 119 . . Explosions 846 | . . . . 4 25 . 7 . . . . 89 . . . 11 . . . 584 . 126 . Melee 811 | . . . . . . . . . 284 . 37 490 . . . . . . . . . . . Knockbacks 52 | . 1 1 . 3 26 8 6 2 2 . . 2 1 . . . . . . . . . . Impact 6 | . . . . . . 1 . . 2 . . 2 1 . . . . . . . . . . Kinetic 44 | . 1 1 . 3 25 6 6 2 . . . . . . . . . . . . . . . Secondary 2 | . . . . . 1 1 . . . . . . . . . . . . . . . . . Self-Inflicted Damage 75 | . . . . . 3 . 20 . . . . 52 . . . . . . . . . . . Shots 3 | . . . . . 1 . 1 . . . . 1 . . . . . . . . . . . Rammed 7 | . 3 . . . 2 2 . . . . . . . . . . . . . . . . . Targets Rammed 8 | . 3 . . . 2 3 . . . . . . . . . . . . . . . . . Kicked . | . . . . . . . . . . . . . . . . . . . . . . . . Crushed 1 | . . . . . . 1 . . . . . . . . . . . . . . . . . Highest Temperature 400 | . 64 9 . 18 289 251 400 260 261 . 190 100 106 131 . 89 135 10 19 14 96 162 166 Average Temperature 61 | . 28 6 . 6 56 45 129 95 111 . 65 28 20 22 . 27 50 5 6 8 26 27 103 Received Heat Transfer 1561 | . 102 . . 18 468 198 159 . 12 . . 12 . 33 . 37 81 9 . 9 . 243 180 Effects 2 | . . . . . . . 2 . . . . . . . . . . . . . . . . Energy Bleed 1 | . . . . . . . 1 . . . . . . . . . . . . . . . . Matter Decay 1 | . . . . . . . 1 . . . . . . . . . . . . . . . . Siege Activations . | . . . . . . . . . . . . . . . . . . . . . . . . Martial Activations . | . . . . . . . . . . . . . . . . . . . . . . . . Shielding Activations . | . . . . . . . . . . . . . . . . . . . . . . . . Robots Disrupted . | . . . . . . . . . . . . . . . . . . . . . . . . Combat Hostiles . | . . . . . . . . . . . . . . . . . . . . . . . . Robots Corrupted 10 | . . . . . . . 3 . 1 . 2 4 . . . . . . . . . . . Combat Hostiles 6 | . . . . . . . 3 . 1 . 2 . . . . . . . . . . . . Parts Fried 13 | . . . . . . . 2 . 1 . 5 5 . . . . . . . . . . . Impact Corruptions 23 | . . . . . . . . . 6 . 2 15 . . . . . . . . . . . Robots Melted 5 | . . . . . . 1 . . . . 1 . . 1 . . . . . . 2 . . Combat Hostiles 5 | . . . . . . 1 . . . . 1 . . 1 . . . . . . 2 . . Parts Melted 17 | . . . . . . 3 2 . . . 4 2 . . . . 4 . . . 2 . . Heat Transferred 6207 | . 50 . . 150 . 407 900 50 . . 250 150 . 450 . 550 1150 300 200 150 1000 450 . Parts Sabotaged . | . . . . . . . . . . . . . . . . . . . . . . . . Parts Stolen . | . . . . . . . . . . . . . . . . . . . . . . . . Parts Stripped . | . . . . . . . . . . . . . . . . . . . . . . . . Power Chain Reactions 1 | . 1 . . . . . . . . . . . . . . . . . . . . . . Alert | -11 -10 -10 -10 -9 -8 -8 -7 -7 -7 -7 -6 -6 -6 -6 -6 -5 -5 -5 -5 -5 -4 -4 -4 ------- Run | Yrd Mat Min Exi Min Mat Sto Fac Low Low Zio Pro Fac Low Low Dat Pro Fac Upp Upp War Pro Fac Upp Maximum Alert Level 3 | . . . . . 3 2 1 . . . . 1 . . . . . . . . . 1 . Low Security (%) 65 | 100 100 100 . 100 27 39 45 . . . . 95 . . . . 100 . . . . 91 . Level 1 13 | . . . . . 25 1 54 . . . . 4 . . . . . . . . . 8 . Level 2 9 | . . . . . 8 58 . . . . . . . . . . . . . . . . . Level 3 11 | . . . . . 38 . . . . . . . . . . . . . . . . . . Level 4 . | . . . . . . . . . . . . . . . . . . . . . . . . Level 5 . | . . . . . . . . . . . . . . . . . . . . . . . . High Security . | . . . . . . . . . . . . . . . . . . . . . . . . Max Security . | . . . . . . . . . . . . . . . . . . . . . . . . Peak Influence 978 | 10 150 79 . 158 978 552 303 . . . . 216 . . . . 188 . . . . 226 . Initial 411 | . . 25 . . 33 411 221 . . . . . . . . . 50 . . . . 9 . Average 226 | 1 63 13 . 101 450 308 202 . . . . 98 . . . . 96 . . . . 51 . Influence Increases 7630 | 20 533 136 . 390 1678 1050 469 . 10 . 213 472 . 105 . 165 479 95 5 790 150 525 345 Destroy 0b10 Robot/C 3900 | . 240 100 . 220 960 460 280 . . . 140 140 . 80 . 80 160 60 . 780 120 80 . Destroy 0b10 Robot/NC 440 | 20 45 10 . 10 90 55 25 . 10 . . 65 . 5 . 15 15 . 5 10 10 50 . Destroy Leader 772 | . 66 20 . 40 254 152 54 . . . 30 36 . 20 . 10 36 20 . . 20 14 . Allied During Kill 402 | . . 5 . 41 29 255 6 . . . 43 1 . . . . . . . . . 22 . Successful Hack 95 | . 35 . . . 23 8 22 . . . . . . . . . 5 . . . . 2 . Select Force Hacks 60 | . 60 . . . . . . . . . . . . . . . . . . . . . . Disable Machine 585 | . 30 . . 30 135 90 30 . . . . 165 . . . . 15 . . . . 90 . Destroy Structure 656 | . 27 1 . 49 127 15 37 . . . . 50 . . . . 158 . . . . 192 . Lose Combat Pursuer 720 | . 30 . . . 60 15 15 . . . . 15 . . . 60 90 15 . . . 75 345 Influence Decreases 7350 | 20 466 203 . 302 792 1535 724 234 10 . 213 405 67 43 62 85 432 173 54 262 662 357 249 Entered New Map 1796 | . . 42 . . 55 563 268 88 . . . . 26 . 62 . 30 48 10 . 528 7 69 Time Decay 4498 | 20 382 161 . 302 627 532 416 146 10 . 170 345 41 43 . 85 373 125 44 252 134 180 110 Lost Part 240 | . . . . . 50 . . . . . . . . . . . . . . 10 . 110 70 Lost Ally 432 | . . . . . 60 140 40 . . . 43 60 . . . . 29 . . . . 60 . Purge Threat 384 | . 84 . . . . 300 . . . . . . . . . . . . . . . . . Squads Dispatched 33 | . 3 . . . 12 2 2 . . . . 5 . . . . 6 . . . . 3 . Investigation 7 | . 2 . . . 1 1 . . . . . 1 . . . . 2 . . . . . . Extermination 9 | . . . . . . . 2 . . . . 3 . . . . 3 . . . . 1 . Reinforcement 9 | . 1 . . . 3 1 . . . . . 1 . . . . 1 . . . . 2 . Assault 1 | . . . . . 1 . . . . . . . . . . . . . . . . . . Garrison 7 | . . . . . 7 . . . . . . . . . . . . . . . . . . Intercept . | . . . . . . . . . . . . . . . . . . . . . . . . Searches Triggered . | . . . . . . . . . . . . . . . . . . . . . . . . Data Miner Redirects 1 | . . . . . . . . . . . . . . . . . 1 . . . . . . Construction Impeded 4 | . . . . . 2 . . . . . . 1 . . . . . . . . . 1 . Haulers Reinforced . | . . . . . . . . . . . . . . . . . . . . . . . . Active Scanning Responses . | . . . . . . . . . . . . . . . . . . . . . . . . Cargo Convoy Interrupts 1 | . . . . . . . . . . . . 1 . . . . . . . . . . . Stealth | -11 -10 -10 -10 -9 -8 -8 -7 -7 -7 -7 -6 -6 -6 -6 -6 -5 -5 -5 -5 -5 -4 -4 -4 --------- Run | Yrd Mat Min Exi Min Mat Sto Fac Low Low Zio Pro Fac Low Low Dat Pro Fac Upp Upp War Pro Fac Upp Distress Signals 17 | . . . . . 7 4 2 . . . . 1 . . . . 1 . . . . 2 . Communications Jammed 19 | . . . . . . . . . . . . 1 . . . . 1 . . 14 . 3 . Distress Signals 19 | . . . . . . . . . . . . 1 . . . . 1 . . 14 . 3 . Times Spotted 337 | . 26 6 . 10 69 32 20 1 6 . 6 12 . 4 . 6 23 7 . 47 6 21 35 Peak Tracking Total 12 | . 5 3 . 3 6 5 4 1 5 . 3 5 . 2 . 4 7 1 . 10 3 11 12 Tactical Retreats 23 | . 1 . . . 4 1 1 . 1 . . 1 . . . 1 3 1 . . . 3 6 ECM-based Alert Blocks 1 | . . . . . . . . . 1 . . . . . . . . . . . . . . Traps | -11 -10 -10 -10 -9 -8 -8 -7 -7 -7 -7 -6 -6 -6 -6 -6 -5 -5 -5 -5 -5 -4 -4 -4 ------- Run | Yrd Mat Min Exi Min Mat Sto Fac Low Low Zio Pro Fac Low Low Dat Pro Fac Upp Upp War Pro Fac Upp Traps Triggered 7 | . 2 . . . 1 1 3 . . . . . . . . . . . . . . . . Indirectly . | . . . . . . . . . . . . . . . . . . . . . . . . Trap Hack Attempts . | . . . . . . . . . . . . . . . . . . . . . . . . Triggered . | . . . . . . . . . . . . . . . . . . . . . . . . Disarmed 6 | . . . . . . 6 . . . . . . . . . . . . . . . . . Reprogrammed . | . . . . . . . . . . . . . . . . . . . . . . . . Reused . | . . . . . . . . . . . . . . . . . . . . . . . . Traps Extracted . | . . . . . . . . . . . . . . . . . . . . . . . . Installed . | . . . . . . . . . . . . . . . . . . . . . . . . Triggered . | . . . . . . . . . . . . . . . . . . . . . . . . Machines | -11 -10 -10 -10 -9 -8 -8 -7 -7 -7 -7 -6 -6 -6 -6 -6 -5 -5 -5 -5 -5 -4 -4 -4 ---------- Run | Yrd Mat Min Exi Min Mat Sto Fac Low Low Zio Pro Fac Low Low Dat Pro Fac Upp Upp War Pro Fac Upp Machines Disabled 41 | . 2 . . 2 9 6 2 . . . . 11 . . . . 1 . . 1 . 6 1 Max in Single Turn 4 | . 1 . . 2 2 1 1 . . . . 4 . . . . 1 . . 1 . 2 1 Garrison Access 3 | . . . . . . 1 2 . . . . . . . . . . . . . . . . Machines Repaired . | . . . . . . . . . . . . . . . . . . . . . . . . Machines Dismantled 2 | . . . . . . 2 . . . . . . . . . . . . . . . . . Machines Sabotaged . | . . . . . . . . . . . . . . . . . . . . . . . . Overloaded Fab Kills . | . . . . . . . . . . . . . . . . . . . . . . . . Hacking | -11 -10 -10 -10 -9 -8 -8 -7 -7 -7 -7 -6 -6 -6 -6 -6 -5 -5 -5 -5 -5 -4 -4 -4 --------- Run | Yrd Mat Min Exi Min Mat Sto Fac Low Low Zio Pro Fac Low Low Dat Pro Fac Upp Upp War Pro Fac Upp Machines Accessed 58 | . 9 1 2 . 10 9 7 . . . . 2 1 . 4 . 3 2 1 5 . 2 . Terminals 22 | . 6 . . . 4 8 2 . . . . . . . . . 1 1 . . . . . Fabricators 4 | . . . . . . . 2 . . . . 1 . . . . 1 . . . . . . Repair Stations 4 | . 1 . . . 1 . . . . . . . . . . . 1 . . . . 1 . Recycling Units 4 | . 2 . . . 2 . . . . . . . . . . . . . . . . . . Scanalyzers 5 | . . . . . 2 . 1 . . . . 1 . . . . . . . . . 1 . Garrison Access 4 | . . . . . 1 1 2 . . . . . . . . . . . . . . . . Total Hacks 159 | . 31 1 2 . 27 24 11 . . . . 4 1 . 31 . 9 2 1 12 . 3 . Successful 115 | . 20 1 2 . 17 14 5 . . . . 4 1 . 31 . 4 2 1 12 . 1 . Failed 43 | . 10 . . . 10 10 6 . . . . . . . . . 5 . . . . 2 . Catastrophic 8 | . 1 . . . 1 4 2 . . . . . . . . . . . . . . . . Database Lockouts 1 | . 1 . . . . . . . . . . . . . . . . . . . . . . Manual 96 | . 17 . 1 . 9 12 3 . . . . 23 . . . . 25 . . . . 6 . Terminals 60 | . 20 . . . 9 23 4 . . . . . . . . . 3 1 . . . . . Fabricators 9 | . . . . . . . 2 . . . . 2 . . . . 5 . . . . . . Repair Stations 15 | . 8 . . . 4 . . . . . . . . . . . 1 . . . . 2 . Recycling Units 7 | . 3 . . . 4 . . . . . . . . . . . . . . . . . . Scanalyzers 12 | . . . . . 6 . 3 . . . . 2 . . . . . . . . . 1 . Garrison Access 7 | . . . . . 4 1 2 . . . . . . . . . . . . . . . . Terminal Hacks 78 | . 12 1 2 . 3 12 . . . . . . 1 . 31 . 1 2 1 12 . . . Record 24 | . . . 1 . . . . . . . . . . . 11 . . 1 . 11 . . . Part Schematic 11 | . . . . . . . . . . . . . . . 11 . . . . . . . . Robot Schematic 6 | . . . . . . . . . . . . . . . 6 . . . . . . . . Robot Analysis 2 | . 1 . . . 1 . . . . . . . . . . . . . . . . . . Prototype ID Bank 4 | . 1 . . . . . . . . . . . . . 3 . . . . . . . . Open Door 6 | . . 1 . . . 1 . . . . . . 1 . . . . 1 1 1 . . . Open DSF 1 | . . . . . . . . . . . . . . . . . 1 . . . . . . Alert Level 7 | . 3 . . . 1 3 . . . . . . . . . . . . . . . . . Unreport Threat 3 | . 1 . . . . 2 . . . . . . . . . . . . . . . . . Locate Traps 7 | . 4 . . . 1 2 . . . . . . . . . . . . . . . . . Disarm Traps 1 | . . . . . . 1 . . . . . . . . . . . . . . . . . Hauler Manifests 2 | . 1 . . . . 1 . . . . . . . . . . . . . . . . . Registered Components 1 | . 1 . . . . . . . . . . . . . . . . . . . . . . Zone Layout 2 | . . . . . . 2 . . . . . . . . . . . . . . . . . Proto ID Catalog 1 | . . . 1 . . . . . . . . . . . . . . . . . . . . Fabricator Hacks 5 | . . . . . . . 1 . . . . 2 . . . . 2 . . . . . . Load Schematic 2 | . . . . . . . . . . . . 1 . . . . 1 . . . . . . Build 3 | . . . . . . . 1 . . . . 1 . . . . 1 . . . . . . Repair Station Hacks 8 | . 5 . . . 2 . . . . . . . . . . . . . . . . 1 . Scan Component 5 | . 3 . . . 1 . . . . . . . . . . . . . . . . 1 . Repair 3 | . 2 . . . 1 . . . . . . . . . . . . . . . . . . Recycling Unit Hacks 4 | . . . . . 4 . . . . . . . . . . . . . . . . . . Process 2 | . . . . . 2 . . . . . . . . . . . . . . . . . . Retrieve Matter 2 | . . . . . 2 . . . . . . . . . . . . . . . . . . Scanalyzer 8 | . . . . . 5 . 1 . . . . 2 . . . . . . . . . . . Retrieve Study 8 | . . . . . 5 . 1 . . . . 2 . . . . . . . . . . . Garrison Access Hacks 3 | . . . . . . 1 2 . . . . . . . . . . . . . . . . Seal Access 3 | . . . . . . 1 2 . . . . . . . . . . . . . . . . Unauthorized Hacks 9 | . 3 . . . 3 1 1 . . . . . . . . . 1 . . . . . . Terminals 5 | . 1 . . . 2 1 1 . . . . . . . . . . . . . . . . Track 1 | . . . . . . 1 . . . . . . . . . . . . . . . . . Botnet 4 | . 1 . . . 2 . 1 . . . . . . . . . . . . . . . . Fabricators . | . . . . . . . . . . . . . . . . . . . . . . . . Repair Stations 1 | . . . . . . . . . . . . . . . . . 1 . . . . . . Patch 1 | . . . . . . . . . . . . . . . . . 1 . . . . . . Recycling Units 2 | . 2 . . . . . . . . . . . . . . . . . . . . . . Tunnel 2 | . 2 . . . . . . . . . . . . . . . . . . . . . . Scanalyzers . | . . . . . . . . . . . . . . . . . . . . . . . . Garrison Access 1 | . . . . . 1 . . . . . . . . . . . . . . . . . . Watchers 1 | . . . . . 1 . . . . . . . . . . . . . . . . . . Data Cores Recovered . | . . . . . . . . . . . . . . . . . . . . . . . . Used . | . . . . . . . . . . . . . . . . . . . . . . . . Hacking Detections 28 | . 6 . . . 7 6 4 . . . . 1 . . . . 2 . . . . 2 . Full Trace Events 3 | . . . . . . 1 . . . . . 1 . . . . 1 . . . . . . Feedback Events . | . . . . . . . . . . . . . . . . . . . . . . . . Feedback Blocked . | . . . . . . . . . . . . . . . . . . . . . . . . Robot Schematics Acquired 10 | . . . . . . . . . . 4 . . . . 6 . . . . . . . . Robots Built 2 | . . . . . . . 2 . . . . . . . . . . . . . . . . Authchips . | . . . . . . . . . . . . . . . . . . . . . . . . Time 49 | . . . . . . . 49 . . . . . . . . . . . . . . . . Total Robot Build Rating 4 | . . . . . . . 4 . . . . . . . . . . . . . . . . Part Schematics Acquired 37 | . . . . . . . . . . 15 . . . . 11 . 11 . . . . . . Parts Built 4 | . . . . . . . . . . . . 2 . . . . 2 . . . . . . Authchips . | . . . . . . . . . . . . . . . . . . . . . . . . Time 212 | . . . . . . . . . . . . 95 . . . . 117 . . . . . . Total Part Build Rating 24 | . . . . . . . . . . . . 10 . . . . 14 . . . . . . Part Studies Acquired 8 | . . . . . 5 . 1 . . . . 2 . . . . . . . . . . . Parts Repaired 3 | . 2 . . . 1 . . . . . . . . . . . . . . . . . . Time 75 | . 62 . . . 13 . . . . . . . . . . . . . . . . . . Parts Recycled . | . . . . . . . . . . . . . . . . . . . . . . . . Recycled Matter 349 | . . . . . 349 . . . . . . . . . . . . . . . . . . Retrieved Matter 449 | . . . . . 449 . . . . . . . . . . . . . . . . . . Retrieved Components . | . . . . . . . . . . . . . . . . . . . . . . . . Parts Scanalyzed . | . . . . . . . . . . . . . . . . . . . . . . . . Part Schematics Acquired . | . . . . . . . . . . . . . . . . . . . . . . . . Parts Damaged . | . . . . . . . . . . . . . . . . . . . . . . . . Bothacking | -11 -10 -10 -10 -9 -8 -8 -7 -7 -7 -7 -6 -6 -6 -6 -6 -5 -5 -5 -5 -5 -4 -4 -4 ------------ Run | Yrd Mat Min Exi Min Mat Sto Fac Low Low Zio Pro Fac Low Low Dat Pro Fac Upp Upp War Pro Fac Upp Used RIF Installer . | . . . . . . . . . . . . . . . . . . . . . . . . Robots Hacked . | . . . . . . . . . . . . . . . . . . . . . . . . Non-combat . | . . . . . . . . . . . . . . . . . . . . . . . . Combat . | . . . . . . . . . . . . . . . . . . . . . . . . Robot Hacks Applied . | . . . . . . . . . . . . . . . . . . . . . . . . Relay Couplers Released . | . . . . . . . . . . . . . . . . . . . . . . . . Fabnet Peak Effective % . | . . . . . . . . . . . . . . . . . . . . . . . . Robots Rewired . | . . . . . . . . . . . . . . . . . . . . . . . . Allies Hacked 3 | . . . . . . . . . . . . 1 . . . . . . . . . 2 . Hacks Repelled . | . . . . . . . . . . . . . . . . . . . . . . . . Allies | -11 -10 -10 -10 -9 -8 -8 -7 -7 -7 -7 -6 -6 -6 -6 -6 -5 -5 -5 -5 -5 -4 -4 -4 -------- Run | Yrd Mat Min Exi Min Mat Sto Fac Low Low Zio Pro Fac Low Low Dat Pro Fac Upp Upp War Pro Fac Upp Total Allies 29 | . . 4 . . . 10 2 . . 4 . 3 . . . . 2 . . . . 4 . Largest Group 10 | . . 4 4 3 3 10 4 . . 4 4 3 . . . . 1 . . . . 4 . Highest-Rated Group 210 | . . 71 71 40 40 173 62 . . 155 155 210 . . . . 35 . . . . 156 . Highest-Rated Ally 70 | . . 31 31 16 16 29 16 . . 43 43 70 . . . . 35 . . . . 39 . Zionite Dispatches 4 | . . . . . . . . . . . . 1 . . . . 2 . . . . 1 . Light 1 | . . . . . . . . . . . . 1 . . . . . . . . . . . Fire 1 | . . . . . . . . . . . . . . . . . . . . . . 1 . Demo 1 | . . . . . . . . . . . . . . . . . 1 . . . . . . Infowar Resupply 1 | . . . . . . . . . . . . . . . . . 1 . . . . . . Total Orders 4 | . . . . . . . 1 . . . . 1 . . . . 2 . . . . . . STAY 2 | . . . . . . . 1 . . . . . . . . . 1 . . . . . . DROP 1 | . . . . . . . . . . . . . . . . . 1 . . . . . . RETURN 1 | . . . . . . . . . . . . 1 . . . . . . . . . . . Ally Attacks 225 | . . 5 . 20 28 132 5 . . . 19 1 . . . . 2 . . . . 13 . Total Damage 3413 | . . 61 . 222 300 1595 116 . . . 717 29 . . . . 153 . . . . 220 . Kills 35 | . . 2 . 7 4 17 1 . . . 2 . . . . . . . . . . 2 . Allies Corrupted . | . . . . . . . . . . . . . . . . . . . . . . . . Allies Melted 2 | . . . . . . . 1 . . . . . . . . . . . . 1 . . . Intel | -11 -10 -10 -10 -9 -8 -8 -7 -7 -7 -7 -6 -6 -6 -6 -6 -5 -5 -5 -5 -5 -4 -4 -4 ------- Run | Yrd Mat Min Exi Min Mat Sto Fac Low Low Zio Pro Fac Low Low Dat Pro Fac Upp Upp War Pro Fac Upp Active Infowar (turns) 16783 | 59 1807 921 816 675 2515 . 1014 454 449 718 341 1477 364 557 55 374 999 435 335 1259 450 480 229 Optics 11258 | . . . . . 1307 . 975 454 449 718 341 1477 364 557 55 374 999 435 335 1259 450 480 229 Sensors 9350 | . . . 2 . . . 900 447 374 713 324 1423 353 519 52 374 948 435 335 1090 450 480 131 Seismic 6791 | 59 1807 921 814 675 2515 . . . . . . . . . . . . . . . . . . Cloaking 951 | . . . . . . . . 7 . . . 603 72 23 . . . . . . . 246 . Jamming 5029 | . . . . . . . 19 . . . . 934 258 . . . 963 435 335 1236 450 399 . ECM 77 | . . . . . . . . . 75 . . . . . . . 2 . . . . . . Robot Analysis Total 2 | . 1 . . . 1 . . . . . . . . . . . . . . . . . . Derelict Logs Recovered 17 | . . 1 . . . . . 3 1 1 1 . 1 2 . 2 . 1 1 . 2 . 1 Drone Launches 1 | . . . . . . . . . . . . 1 . . . . . . . . . . . Drone Recoveries 1 | . . . . . . . . . . . . 1 . . . . . . . . . . . Zionite Intel Received 12 | . . . . . . . . . . . . 5 . . . . 6 . . . . 1 . Branch Access 2 | . . . . . . . . . . . . . . . . . 1 . . . . 1 . Emergency Access 1 | . . . . . . . . . . . . . . . . . 1 . . . . . . Guard Positions 1 | . . . . . . . . . . . . 1 . . . . . . . . . . . Component Stockpiles 2 | . . . . . . . . . . . . 1 . . . . 1 . . . . . . Prototype Schematics 1 | . . . . . . . . . . . . . . . . . 1 . . . . . . Unaware Analyses 4 | . . . . . . . . . . . . 2 . . . . 2 . . . . . . Depthwide Sectors/0 1 | . . . . . . . . . . . . 1 . . . . . . . . . . . Exploration | -11 -10 -10 -10 -9 -8 -8 -7 -7 -7 -7 -6 -6 -6 -6 -6 -5 -5 -5 -5 -5 -4 -4 -4 ------------- Run | Yrd Mat Min Exi Min Mat Sto Fac Low Low Zio Pro Fac Low Low Dat Pro Fac Upp Upp War Pro Fac Upp Turns Passed 20018 | 160 1807 921 816 675 4036 1610 1017 454 449 718 341 1477 364 557 55 374 999 435 335 1259 450 480 229 Spaces Moved 18887 | 72 950 542 504 396 1830 679 1404 672 533 1046 419 1952 499 775 101 657 1263 554 669 1693 710 657 310 Core 248 | 2 . . . . . . . . . . . . . . . . . . . . . . 246 Treads 4971 | 70 950 542 504 396 1830 679 . . . . . . . . . . . . . . . . . Legs 100 | . . . . . . . . . . . . . . . . . . . . . . 36 64 Wheels . | . . . . . . . . . . . . . . . . . . . . . . . . Hover . | . . . . . . . . . . . . . . . . . . . . . . . . Flight 13568 | . . . . . . . 1404 672 533 1046 419 1952 499 775 101 657 1263 554 669 1693 710 621 . Fastest Speed 37 | 50 160 160 160 160 155 155 50 50 50 50 50 50 50 50 50 50 50 49 42 37 37 37 50 Average Speed 81 | 156 160 160 160 160 184 190 50 50 50 50 50 53 50 50 50 50 50 49 43 40 37 46 71 Slowest Speed 240 | 160 160 160 160 160 240 208 50 50 50 50 50 150 50 150 150 50 150 50 49 122 37 200 200 Overloaded Moves . | . . . . . . . . . . . . . . . . . . . . . . . . Propulsion Burnouts . | . . . . . . . . . . . . . . . . . . . . . . . . Robots Hopped 40 | . . . . . . . 6 1 1 . . 2 1 . . . 13 2 2 . . 12 . Potential Cave-ins 18 | . . . . . 2 . . . 4 . . . 2 . . . . . . 7 3 . . Cave-ins Triggered 3 | . . . . . 2 . . . . . . . 1 . . . . . . . . . . Exploration Rate (%) 70 | 3 99 95 78 76 92 90 45 84 67 88 64 49 66 86 75 83 37 72 84 97 82 15 64 Regions Visited 23 Branch Regions 17 Pre-discovered Areas 20 | . 2 1 1 . . . . 1 . 4 . 10 . . 1 . . . . . . . . Known Exits Taken 18 | . . . . . 1 1 1 1 1 1 1 1 1 1 1 1 1 1 1 1 1 1 . Unknown Exits Taken 5 | 1 1 1 1 1 . . . . . . . . . . . . . . . . . . . Scrap Searched 41 | . . 3 . 2 . . . 5 1 3 2 . 9 3 . 3 . 2 2 . 4 . 2 Spaces Dug 285 | . 2 . . . 24 . 13 20 31 . . 29 25 44 . . 40 7 12 . 8 30 . Terrain Destroyed 1063 | . 25 1 . 64 150 13 38 24 33 . . 48 27 90 . 27 86 13 20 200 82 122 . Melee 58 | . . . . . . . 12 14 5 . . 27 . . . . . . . . . . . Projectile 359 | . 2 1 . 3 54 13 5 10 28 . . 3 27 49 . 10 55 13 20 1 25 40 . AOE 646 | . 23 . . 61 96 . 21 . . . . 18 . 41 . 17 31 . . 199 57 82 . Terrain Rammed . | . . . . . . . . . . . . . . . . . . . . . . . . Walls Destroyed . | . . . . . . . . . . . . . . . . . . . . . . . . Machines Disabled . | . . . . . . . . . . . . . . . . . . . . . . . . Actions | -11 -10 -10 -10 -9 -8 -8 -7 -7 -7 -7 -6 -6 -6 -6 -6 -5 -5 -5 -5 -5 -4 -4 -4 --------- Run | Yrd Mat Min Exi Min Mat Sto Fac Low Low Zio Pro Fac Low Low Dat Pro Fac Upp Upp War Pro Fac Upp Total 22174 | 96 1126 576 516 418 2266 863 1607 730 644 1234 534 2263 584 870 104 676 1530 693 684 2242 839 762 317 Wait 1970 | . 90 10 2 9 171 75 93 18 52 175 95 174 40 17 . 4 192 120 . 481 97 55 . Move 18790 | 71 949 541 503 395 1828 678 1391 669 530 1045 418 1948 495 774 100 656 1239 549 664 1692 709 636 310 Hop 32 | . . . . . . . 6 1 1 . . 1 1 . . . 10 2 2 . . 8 . Pick Up 91 | 6 7 6 3 . 20 7 11 . 1 1 3 9 4 . . . 3 2 2 5 . . 1 Fast Attach 69 | 7 7 . . . 12 1 2 . . 2 1 6 1 3 1 . 5 1 . 12 . 7 1 Attach 28 | . . . . . 6 1 2 . . . . 7 4 1 . . 1 . . 3 . 2 1 Detach 28 | . . . . . 1 1 1 . . . 1 9 5 2 . . 3 . . 5 . . . Swap 207 | . 11 2 2 2 42 19 25 5 4 6 3 32 . 14 2 3 13 . 1 13 3 5 . Drop 145 | . 2 6 6 . 37 12 17 . 1 3 3 15 4 1 1 . 9 3 2 15 . 5 3 Fire 689 | 12 57 11 . 12 146 45 47 23 43 . 7 14 27 58 . 13 55 15 13 16 30 44 1 Melee 98 | . . . . . . 5 12 14 12 2 3 48 2 . . . . . . . . . . Ram . | . . . . . . . . . . . . . . . . . . . . . . . . Kick . | . . . . . . . . . . . . . . . . . . . . . . . . Crush 8 | . 3 . . . 2 3 . . . . . . . . . . . . . . . . . Escape Stasis 2 | . . . . . 1 . . . . . . . 1 . . . . . . . . . . Rewire . | . . . . . . . . . . . . . . . . . . . . . . . . Trap . | . . . . . . . . . . . . . . . . . . . . . . . . Miscellaneous 17 | . . . . . . 16 . . . . . . . . . . . 1 . . . . . Route ------- -11/Scrapyard -10/Materials (discovered 4 exits: *Mat x3 / *Min) -10/Mines (discovered 3 exits: *Mat x2 / *Exi) -10/Exiles (discovered 2 exits: [*Min x2]) -9/Mines -8/Materials (discovered 4 exits: *Fac x2 / *Sto x2) -8/Storage (discovered 2 exits: *Fac / *Rec) -7/Factory -7/Lower Caves -7/Lower Caves -7/Zion -6/Proximity Caves -6/Factory (discovered 5 exits: *Fac x3 / *Low / *Ext) -6/Lower Caves -6/Lower Caves -6/Data Miner -5/Proximity Caves -5/Factory (discovered 4 exits: *Fac x2 / *Upp x2) -5/Upper Caves -5/Upper Caves -5/Warlord -4/Proximity Caves -4/Factory (discovered 4 exits: *Res x2 / *Upp x2) -4/Upper Caves (discovered 1 exit: [*Upp]) History --------- Turn | Location | Event 39 | -11/Scrapyard | Discovered new exit (range 16) 161 | -11/Scrapyard | Entered Materials 305 | -10/Materials | Build established: Mutant 364 | -10/Materials | Discovered new exit (range 9) 509 | -10/Materials | Central database locked down 588 | -10/Materials | Discovered new exit (range 14) 795 | -10/Materials | Discovered new exit (range 10) 1452 | -10/Materials | Discovered new exit (range 11) 1678 | -10/Materials | Repaired Lgt. Treads 1715 | -10/Materials | Repaired Broken Lgt. Treads 1968 | -10/Materials | Entered Mines 1978 | -10/Mines | Escorted by a lone wolf Derelict 1998 | -10/Mines | Learned location of Storage (-8) 2032 | -10/Mines | Found a damaged Exp. Sensor Array with a note attached 2035 | -10/Mines | Found Prototype Device 2193 | -10/Mines | Assembled infested the area 2199 | -10/Mines | Met a Derelict who couldn't figure out how to use a Trap Extractor 2407 | -10/Mines | Identified exit to Materials 2427 | -10/Mines | Assisted by bots powering up and referring to "LRC-V3" 2844 | -10/Mines | Discovered exit to Materials (range 10) 2850 | -10/Mines | Met a Derelict testing a Signal Generator 2873 | -10/Mines | Discovered new exit (range 5) 2889 | -10/Mines | Entered Exiles 2889 | -10/Exiles | Accompanied by 4 allies 2912 | -10/Exiles | Discovered new exit (range 15) 2929 | -10/Exiles | Met 8R-AWN 2957 | -10/Exiles | Met EX-HEX 3003 | -10/Exiles | Met EX-BIN 3022 | -10/Exiles | Aligned with FarCom system 3024 | -10/Exiles | Given EX-Vault access code 3061 | -10/Exiles | Opened EX-Vault 3102 | -10/Exiles | Warned to stay clear of 0b10 Research branches 3149 | -10/Exiles | Met EX-DEC 3158 | -10/Exiles | Learned location of Zion (-7) 3225 | -10/Exiles | Visited The Gauntlet 3522 | -10/Exiles | Found Skeleton Box 3530 | -10/Exiles | Found Cloak of Protection 3534 | -10/Exiles | Identified Exp. Sensor Array 3541 | -10/Exiles | Found Flying Fortress v7 3686 | -10/Exiles | Discovered new exit (range 12) 3705 | -10/Exiles | Stole three prototypes: Flying Fortress v7, Cloak of Protection, Skeleton Box 3705 | -10/Exiles | Entered Mines 3705 | -9/Mines | Accompanied by 3 allies 4020 | -9/Mines | Discovered new exit (range 7) 4380 | -9/Mines | Entered Materials 4380 | -8/Materials | Accompanied by 3 allies 4380 | -8/Materials | Evolved 4 slots: Propulsion x1, Utility x3 4915 | -8/Materials | Lost 3 allies 6069 | -8/Materials | Crushed by falling debris 6073 | -8/Materials | Crushed by falling debris 6137 | -8/Materials | Discovered new exit (range 16) 6165 | -8/Materials | Garrison activated, responded to threat 6187 | -8/Materials | Discovered new exit (range 16) 6246 | -8/Materials | Identified exit to Storage 6256 | -8/Materials | Identified exit to Factory 6485 | -8/Materials | Garrison activated, responded to threat 6541 | -8/Materials | Core integrity fell below 50% 6654 | -8/Materials | Garrison activated, responded to threat 6809 | -8/Materials | Build established: Scavenger-Mutant 7416 | -8/Materials | Build established: Mutant 8049 | -8/Materials | Discovered exit to Factory (range 15) 8219 | -8/Materials | Repaired Lgt. Armor Plating 8298 | -8/Materials | Discovered exit to Storage (range 11) 8380 | -8/Materials | First assault squad dispatched 8416 | -8/Materials | Entered Storage 8418 | -8/Storage | FarCom data flow suspended 9003 | -8/Storage | Assisted by bots powering up and referring to "LRC-V3" 9316 | -8/Storage | Build established: Commander-Mutant 9410 | -8/Storage | Lost 3 allies 9648 | -8/Storage | Used back door to open Recycling access 9648 | -8/Storage | Discovered new exit (range 4) 9654 | -8/Storage | Identified exit to Recycling 9900 | -8/Storage | Lost 3 allies 9984 | -8/Storage | Discovered exit to Factory (range 16) 10026 | -8/Storage | Entered Factory 10026 | -7/Factory | Accompanied by 2 allies 10026 | -7/Factory | Evolved 2 slots: Propulsion x1, Utility x1 10285 | -7/Factory | Fabricated Y-45 Defender? 10706 | -7/Factory | Build established: Scout 11031 | -7/Factory | Discovered new exit (range 6) 11033 | -7/Factory | Identified exit to Lower Caves 11043 | -7/Factory | Entered Lower Caves 11044 | -7/Lower Caves | Learned Factory garrison access intel 11471 | -7/Lower Caves | Learned location of 1 exit from Factory 11480 | -7/Lower Caves | Discovered new exit (range 10) 11496 | -7/Lower Caves | Identified exit to Lower Caves 11497 | -7/Lower Caves | Entered another Lower Caves area 11517 | -7/Lower Caves | Found DRS Beacon 11640 | -7/Lower Caves | Learned location of 1 exit from Proximity Caves 11684 | -7/Lower Caves | Spotted B-75 Beast 11939 | -7/Lower Caves | Encountered a Master Thief 11939 | -7/Lower Caves | Encountered a Master Thief 11939 | -7/Lower Caves | Encountered a Master Thief 11941 | -7/Lower Caves | Encountered a Master Thief 11942 | -7/Lower Caves | Discovered new exit (range 10) 11945 | -7/Lower Caves | Identified exit to Zion 11946 | -7/Lower Caves | Entered Zion 11962 | -7/Zion | Visited the Megawrench Repair Shop 11964 | -7/Zion | Megawrench repaired 5 parts 11974 | -7/Zion | Discovered new exit (range 11) 11989 | -7/Zion | System corruption cleaned by Quarantine Array 12113 | -7/Zion | Learned location of Warlord (-5) 12120 | -7/Zion | Learned location of Armory (-3) 12173 | -7/Zion | Learned Factory stockpile data 12290 | -7/Zion | Given the Hacking Drone Bay 12291 | -7/Zion | Found Prototype Device 12292 | -7/Zion | Identified Hacking Drone Bay 12385 | -7/Zion | Met Imprinter 12394 | -7/Zion | Imprinted 12396 | -7/Zion | Declared Zion's savior 12493 | -7/Zion | Identified exit to Proximity Caves 12664 | -7/Zion | Entered Proximity Caves 12664 | -6/Proximity Caves | Accompanied by 4 allies 12665 | -6/Proximity Caves | Identified exit to Factory 12696 | -6/Proximity Caves | Learned Factory interactive machine intel 12726 | -6/Proximity Caves | Attracted the attention of an 0b10 checkpoint 12790 | -6/Proximity Caves | Spotted B-75 Beast 12888 | -6/Proximity Caves | Allies destroyed B-75 Beast 12917 | -6/Proximity Caves | Lost 3 allies 13005 | -6/Proximity Caves | Entered Factory 13005 | -6/Factory | Evolved 2 slots: Power x1, Utility x1 13006 | -6/Factory | Identified exit to Factory 13008 | -6/Factory | Loaded intel: 55 interactive machine locations 13009 | -6/Factory | Loaded intel: 4 garrison access locations 13255 | -6/Factory | Fabricated Phase Cannon? 13500 | -6/Factory | Discovered exit to Factory (range 9) 13577 | -6/Factory | Build established: Ninja 13622 | -6/Factory | Retrieved Zion intel report: Depthwide Sectors/-6 13652 | -6/Factory | Retrieved Zion intel report: Unaware Analyses 13891 | -6/Factory | Retrieved Zion intel report: Component Stockpiles 14031 | -6/Factory | Retrieved Zion intel report: Guard Positions 14033 | -6/Factory | Discovered exit to Factory (range 7) 14078 | -6/Factory | Spotted B-75 Beast 14242 | -6/Factory | Retrieved Zion intel report: Unaware Analyses 14243 | -6/Factory | Zion Light squad teleported in 14322 | -6/Factory | Discovered new exit (range 8) 14325 | -6/Factory | Discovered new exit (range 18) 14325 | -6/Factory | Identified exit to Lower Caves 14371 | -6/Factory | Identified exit to Extension 14408 | -6/Factory | Cargo convoy interrupted 14443 | -6/Factory | Terminal network hard line cut 14449 | -6/Factory | Lost 3 allies 14458 | -6/Factory | Found Prototype Protection 14458 | -6/Factory | Identified Zio. Weapon Casing 14482 | -6/Factory | Entered Lower Caves 14578 | -6/Lower Caves | Learned location of 1 exit from Factory 14584 | -6/Lower Caves | Discovered new exit (range 8) 14674 | -6/Lower Caves | Murdered Warlord Statue 14688 | -6/Lower Caves | Found Prototype Device 14700 | -6/Lower Caves | Identified Heart of Steel 14745 | -6/Lower Caves | Build established: Messiah-Ninja 14753 | -6/Lower Caves | Crushed by falling debris 14844 | -6/Lower Caves | Identified exit to Lower Caves 14846 | -6/Lower Caves | Entered another Lower Caves area 14852 | -6/Lower Caves | Learned Factory trap positions 15053 | -6/Lower Caves | Build established: Messiah-Scout 15098 | -6/Lower Caves | Encountered a Warlord checkpoint 15101 | -6/Lower Caves | Learned Factory security intel 15105 | -6/Lower Caves | Spotted B-75 Beast 15145 | -6/Lower Caves | Destroyed B-75 Beast 15400 | -6/Lower Caves | Discovered new exit (range 4) 15402 | -6/Lower Caves | Identified exit to Data Miner 15403 | -6/Lower Caves | Entered Data Miner 15404 | -6/Data Miner | Discovered new exit (range 6) 15408 | -6/Data Miner | Identified exit to Proximity Caves 15413 | -6/Data Miner | Met Data Miner 15427 | -6/Data Miner | Learned location of Section 7 (-2) 15427 | -6/Data Miner | Acquired the access code to Warlord's prototype stash 15437 | -6/Data Miner | Received God Mode back door access code from Data Miner 15458 | -6/Data Miner | Entered Proximity Caves 15641 | -5/Proximity Caves | Learned Factory terminal intel 15733 | -5/Proximity Caves | Discovered exit to Factory (range 20) 15832 | -5/Proximity Caves | Entered Factory 15832 | -5/Factory | Evolved 2 slots: Propulsion x1, Utility x1 15833 | -5/Factory | Identified exit to Upper Caves 15834 | -5/Factory | Identified exit to Factory 15835 | -5/Factory | Loaded intel: 115 trap records 15837 | -5/Factory | Loaded intel: 25 terminal locations 15933 | -5/Factory | Zion Infowar Resupply teleported in 16040 | -5/Factory | Retrieved Zion intel report: Component Stockpiles 16062 | -5/Factory | Retrieved Zion intel report: Unaware Analyses 16111 | -5/Factory | Retrieved Zion intel report: Emergency Access 16122 | -5/Factory | Retrieved Zion intel report: Prototype Schematics 16131 | -5/Factory | Retrieved Zion intel report: Unaware Analyses 16425 | -5/Factory | Retrieved Zion intel report: Branch Access 16426 | -5/Factory | Zion Demo squad teleported in 16556 | -5/Factory | Discovered exit to Factory (range 21) 16621 | -5/Factory | Incoming investigation squad redirected 16721 | -5/Factory | Fabricated Adv. Transmission Jammer (x2) 16831 | -5/Factory | Entered Upper Caves 16890 | -5/Upper Caves | Encountered a Warlord checkpoint 17111 | -5/Upper Caves | Activated DRS Beacon 17190 | -5/Upper Caves | Identified exit to Upper Caves 17266 | -5/Upper Caves | Entered another Upper Caves area 17418 | -5/Upper Caves | Discovered new exit (range 5) 17420 | -5/Upper Caves | Identified exit to Warlord 17445 | -5/Upper Caves | Learned Factory stockpile data 17601 | -5/Upper Caves | Entered Warlord 17615 | -5/Warlord | Discovered new exit (range 14) 17696 | -5/Warlord | Learned Research stockpile data 17696 | -5/Warlord | Learned 4 Armory zone layouts 17696 | -5/Warlord | Learned 4 Testing zone layouts 17696 | -5/Warlord | Learned Quarantine security intel 17696 | -5/Warlord | Learned Factory recycling unit intel 17696 | -5/Warlord | Learned Research terminal intel 17696 | -5/Warlord | Learned Research fabricator intel 17789 | -5/Warlord | Remotely autohacked Sealed Heavy Doors 17797 | -5/Warlord | Found Prototype Device 17797 | -5/Warlord | Identified Thermal Barrier 17804 | -5/Warlord | Found Prototype Reactor 17804 | -5/Warlord | Identified Vortex Chain Reactor 17837 | -5/Warlord | Found Prototype Processor 17837 | -5/Warlord | Identified Spectral Analyzer 17872 | -5/Warlord | Warlord's base attacked by MAIN.C 17875 | -5/Warlord | Rebuked by Warlord 17990 | -5/Warlord | Found Prototype Piercing Weapon 17990 | -5/Warlord | Identified Vortex Lance 17992 | -5/Warlord | Found Prototype Energy Gun 17992 | -5/Warlord | Identified Vortex Shotgun 17998 | -5/Warlord | Found Prototype Launcher 17998 | -5/Warlord | Identified Vortex Catalyst Activator 18100 | -5/Warlord | Warlord forces counterattacked 18210 | -5/Warlord | Spotted Striker 18213 | -5/Warlord | Destroyed Striker 18244 | -5/Warlord | Lost 15 allies 18268 | -5/Warlord | Spotted Striker 18293 | -5/Warlord | Spotted Executioner 18294 | -5/Warlord | Spotted Executioner 18296 | -5/Warlord | Spotted Executioner 18298 | -5/Warlord | Destroyed Executioner 18300 | -5/Warlord | Destroyed Executioner 18321 | -5/Warlord | Destroyed 8 combat bots 18326 | -5/Warlord | Lost 6 allies 18372 | -5/Warlord | Spotted Striker 18372 | -5/Warlord | Spotted Striker 18384 | -5/Warlord | Destroyed Striker 18405 | -5/Warlord | Destroyed 18 combat bots 18411 | -5/Warlord | Lost 5 allies 18478 | -5/Warlord | Found Vortex Shotgun 18547 | -5/Warlord | Warlord base infiltrated, sounded retreat 18720 | -5/Warlord | Lost 10 allies 18723 | -5/Warlord | Spotted Executioner 18750 | -5/Warlord | Spotted Executioner 18763 | -5/Warlord | Spotted Executioner 18778 | -5/Warlord | Found Prototype Device 18778 | -5/Warlord | Identified Exp. Shock Absorption System 18781 | -5/Warlord | Spotted B-75 Beast 18781 | -5/Warlord | Spotted Striker 18782 | -5/Warlord | Spotted B-86 Titan 18782 | -5/Warlord | Spotted B-86 Titan 18837 | -5/Warlord | Spotted B-75 Beast 18860 | -5/Warlord | Identified exit to Proximity Caves 18860 | -5/Warlord | Entered Proximity Caves 18865 | -4/Proximity Caves | Lost 7 allies 18870 | -4/Proximity Caves | Learned location of 1 exit from Research 19118 | -4/Proximity Caves | Spotted B-86 Titan 19310 | -4/Proximity Caves | Entered Factory 19310 | -4/Factory | Evolved 2 slots: Propulsion x1, Utility x1 19312 | -4/Factory | Loaded intel: 8 recycling unit locations 19378 | -4/Factory | Discovered new exit (range 7) 19382 | -4/Factory | Identified exit to Research 19521 | -4/Factory | Spotted B-86 Titan 19688 | -4/Factory | Retrieved Zion intel report: Branch Access 19688 | -4/Factory | Identified exit to Upper Caves 19689 | -4/Factory | Zion Fire squad teleported in 19746 | -4/Factory | Lost 8 parts (2p1n1u4w) 19749 | -4/Factory | Lost 4 allies 19752 | -4/Factory | Discovered exit to Research (range 23) 19790 | -4/Factory | Entered Upper Caves 19823 | -4/Upper Caves | Lost 4 parts (2n2u) 19898 | -4/Upper Caves | Lost 3 parts (1n1u1w) 19904 | -4/Upper Caves | Found Alien Artifact 19947 | -4/Upper Caves | Learned Research security intel 19966 | -4/Upper Caves | Core integrity fell below 50% 19991 | -4/Upper Caves | Build established: Mutant 20004 | -4/Upper Caves | Discovered new exit (range 21) 20008 | -4/Upper Caves | Core integrity fell below 20% 20019 | -4/Upper Caves | Destroyed by S-27 Virus with Autogun Last Messages --------------- 19928_ Penetrated by Slug. 19947_ Acquired derelict log, extracted data. Data stored: Research security intel. 19948_ Searching scrap... 19948_ Found Adv. Melee Analysis Suite. 19948_ Found 60 Matter. 19949_ Acquired 60 matter. 19951_ Acquired Adv. Melee Analysis Suite. 19961_ Critical hit (Burn: +37). 19965_ Penetrated by Slug. 19965_ Slug penetrates H-77 Assassin. 19972_ Penetrated by Slug. 19973_ Searching scrap... 19973_ Found Antigrav System. 19973_ Found Imp. Terrain Scan Processor. 19973_ Found 51 Matter. 19974_ Acquired 20 matter. 19975_ Adv. Melee Analysis Suite destroyed. 20000_ System corrupted: IFF burst signal emitted. 20004_ EXIT=FOUND Map ----- +----------------------------------------------------+ | ?????????????????????????????????????????? | | ?????????????????????????????????????????? | | ?????????????????????????????????????????? | | ?????????????????????????????????????????? | | ?????????????????????????????????????????? | | ?????????????????????????????????????????? | | ?????????????????????????????????????????? | | ?????????????????????????????????????????? | | ?????????????????????????????????????????? | | ?????????????????????????????????????????? | | ?????????????????????????????????????????? | | ?????????????????????????????????????????? | | ?????????????????????????????????????????? | | ???????????????????????????????????????### | | ??????????????????????????????????????# # | | ?????????????????###????????????###??? | | ????????????????## ###??????????# ##?? | | ????????????????# ##????????## ##? | | ????????????????# ##???????# ## | | ????????????????# ##?????## | | ???????????????## ####### # | | ???????????????# # | | ???????????????# sss ## #? | | ??????????????## sss## ## #?? | | ??????????????# s #### #??? | | ??????????????# @ s##?## #??? | | ??????????????# ## s ##??# #??? | | ??????????????###?## #???## ##### | | ???????????????????# #????### ### | | ???????????????????#### #??????## ## | | ??????????????????????## #???????# | | ???????????????????????## #???????## | | ????????????????????????###????????## | | ????????????????????????????????????# | | ????????????????????????????????????## | | ?????????????????????????????????????## | | ?????????????????????????# ????????# | | ????????????????????????# ## | | ??????????????????????? | | ??????????????????????? ## | | ??????????????????????? < #? | | ???????????????????????# #####? | | ???????????????????????# ##?????? | | ???????????????????????# ????????? | | ????????????????????????# ## ?????????? | | ????????????????????????#???## ??????????? | | ?????????????????????????????#???????????? | | ?????????????????????????????????????????? | | ?????????????????????????????????????????? | | ?????????????????????????????????????????? | +----------------------------------------------------+ Best States ------------- Heat Dissipation 74 Energy Generation 55 Energy Capacity 700 Matter Stores 300 Matter Capacity 300 Sight Range 24 Robot Scan Range 20 Terrain Scan Density 10 ECM Strength 1 Jamming Range 16 Cloak Strength 5 Armor Coverage 225 Resistance: TH 50 Resistance: EX 75 Propulsion Shielding 66 Evasion (%) 62 Targeting Accuracy 8 Melee Accuracy 8 Core Analysis 9 Recoil Reduction 3 Offensive Hacking 10 Item Schematics ----------------- Angular Momentum Engine | -7/Zion | Archive Energy Filter | -7/Zion | Archive Gauss Rifle | -7/Zion | Archive Arm. Leg | -7/Zion | Archive Imp. Cooling System | -7/Zion | Archive Lgt. Angular Momentum Engine | -7/Zion | Archive Core Analyzer | -7/Zion | Archive Imp. Remote Datajack | -7/Zion | Archive Imp. Arc Projector | -7/Zion | Archive Power Maul | -7/Zion | Archive Phase Cannon | -7/Zion | Archive Transmission Jammer | -7/Zion | Archive Hvy. Flak Cannon | -7/Zion | Archive Plasma Rifle | -7/Zion | Archive Imp. Field Recycling Unit | -7/Zion | Archive Combat Drone Bay | -6/Data Miner | Free Lgt. Regenerative Plating | -6/Data Miner | Free Cld. Gravmag System | -6/Data Miner | Free Prc. Energy Filter | -6/Data Miner | Free Hvy. Proton Missile Launcher | -6/Data Miner | Free Impulse Thruster | -6/Data Miner | Free Adv. Transmission Jammer | -6/Data Miner | Free Hardcell Cannon | -6/Data Miner | Free Imp. Phase Shifter | -6/Data Miner | Free Adv. Trap Scanner | -6/Data Miner | Free Particle Reactor | -6/Data Miner | Free Cld. Plasma Cannon | -5/Factory | Z-intel Prc. Matter Filter | -5/Factory | Z-intel Hpw. Field Laser | -5/Factory | Z-intel Imp. Heavy Machine Gun | -5/Factory | Z-intel Imp. Heavy Laser | -5/Factory | Z-intel Imp. Lightning Gun | -5/Factory | Z-intel Kinetic Spear | -5/Factory | Z-intel Imp. KE Penetrator | -5/Factory | Z-intel Cld. Aerolev Unit | -5/Factory | Z-intel Hvy. Gatling Laser | -5/Factory | Z-intel Thermal Defense Suite | -5/Factory | Z-intel Robot Schematics ------------------ B-48 Gladiator | -7/Zion | Archive I-25 Savior | -7/Zion | Archive B-36 Bruiser | -7/Zion | Archive G-73 Enforcer | -7/Zion | Archive Y-54 Guardian | -6/Data Miner | Free Y-64 Sentinel | -6/Data Miner | Free A-15 Conveyor | -6/Data Miner | Free S-27 Virus | -6/Data Miner | Free G-50 Soldier | -6/Data Miner | Free H-66 Slayer | -6/Data Miner | Free Fabricated ------------ Y-45 Defender | x2 | -7/Factory | Preloaded Phase Cannon | x2 | -6/Factory Adv. Transmission Jammer | x2 | -5/Factory Repaired ---------- Lgt. Treads | 7% | -10/Materials Lgt. Treads | 9% | -10/Materials | Broken Lgt. Armor Plating | 24% | -8/Materials Studied --------- Grenade Launcher | -8/Materials | Hacked Assault Cannon | -8/Materials | Hacked Lgt. Treads | -8/Materials | Hacked Adv. Treads | -8/Materials | Hacked Plasma Cutter | -8/Materials | Hacked Plasma Cannon | -7/Factory | Hacked Lgt. Angular Momentum Engine | -6/Factory | Hacked Fission Core | -6/Factory | Hacked Alien Tech Used ----------------- None Achievements -------------- None Challenges ------------ None Game ------ Seed GravitonEnergyChaingun Manual? 0 Play Time 03:32:45 Cumulative 269.9 hours Start 2026.07.26 @ 00:46:53 End 2026.07.27 @ 22:35:24 Sessions 14 Manual Loads 0 Difficulty Rogue Special Mode None Game No. 141 Rogue 137 Adventurer 4 Explorer 0 Win Type - Total 6 Types 3/0/1/1/0/0/0/1/0/0 Lore% 80 Gallery% 70 Achievement% 55 Wizard Run 0 Options --------- Layout 0 ASCII 0 Keyboard 1 Movement Vi Keybinds 0 Fullscreen 2 Font 24/Crisp Map View 76x50 Zoom Use 0% Tactical HUD 1 Map Filters NONE Filters NONE Steam 1 RUN: 9837f578-d88f-44f4-b672-235c51061fe5